fUSD/lending_fUSD_20240214
["ID","MTS","AMOUNT","RATE_DAILY","PERIOD"]
[313997400,1707919833880,-153.45,0.000349,2]
[313997401,1707919833889,-153.45,0.000349,2]
[313997402,1707919833898,-153.45,0.000349,2]
[313997403,1707919833907,-6620.07228054,0.00035,15]
[313997404,1707919833928,-7482.43737634,0.00035,15]
[313997405,1707919833942,-5219.8931204,0.00035,15]
[313997406,1707919833968,-80677.59722272,0.00035,15]
[313997407,1707919833977,-1303.35777707,0.00035051,7]
[313997408,1707919833986,-324.75158999,0.00035397,2]
[313997409,1707919833995,-150.0,0.00035603,7]
[313997410,1707919834004,-304.687,0.00035603,7]
[313997411,1707919834014,-666.0,0.00035616,2]
[313997412,1707919834023,-153.0,0.00035616,2]
[313997413,1707919834033,-372.049,0.00035734,2]
[313997414,1707919834042,-322.538,0.00035734,2]
[313997415,1707919834051,-150.597,0.00035734,2]
[313997416,1707919834060,-453.0,0.00035734,2]
[313997417,1707919834069,-177.3,0.000358,2]
[313997418,1707919834078,-3625.24,0.000359,2]
[313997419,1707919834087,-1303.35777707,0.00035911,8]
[313997420,1707919834097,-26838.15157481,0.00035922,2]
[313997421,1707919834106,-970.18478666,0.00035922,2]
[313997422,1707919834115,-4208.0,0.00035943,2]
[313997423,1707919834124,-269.319,0.00035943,2]
[313997424,1707919834134,-3559.293,0.00035943,2]
[313997425,1707919834143,-81131.57627168,0.00036,16]
[313997426,1707919834160,-7892.15390794,0.00036,16]
[313997431,1707919837555,-206.0,0.00032237,2]
[313997432,1707919837564,-90.5573239,0.00034761,7]
[313997433,1707919837576,-115.4426761,0.00034761,7]
[313997434,1707919837585,-10976.26982038,0.00036,16]
[313997435,1707919837594,-155.0,0.00036,2]
[313997436,1707919837603,-250.0,0.00036,2]
[313997437,1707919837611,-150.0,0.00036,2]
[313997438,1707919837620,-150.0,0.00036,2]
[313997439,1707919837629,-1907.22740137,0.00036142,2]
[313997440,1707919837639,-153.45,0.000363,3]
[313997441,1707919837648,-153.45,0.000363,3]
[313997442,1707919837657,-153.45,0.000363,3]
[313997443,1707919837666,-153.45,0.000363,3]
[313997444,1707919837676,-153.45,0.000363,3]
[313997445,1707919837685,-241.79284484,0.00036348,2]
[313997446,1707919837694,-165.09,0.00036472,2]
[313997447,1707919837703,-152.0,0.00036565,3]
[313997452,1707919837915,-186.47212307,0.00036612,2]
[313997454,1707919837925,-212.57013512,0.00036612,2]
[313997456,1707919837938,-161.25218328,0.00036612,2]
[313997458,1707919837947,-214.52600523,0.00036612,2]
[313997460,1707919837956,-871.39411208,0.00036612,2]
[313997462,1707919837965,-1491.715,0.00036612,3]
[313997464,1707919837975,-162.92968762,0.0003668,30]
[313997466,1707919837984,-500.0,0.00036709,30]
[313997468,1707919837995,-1050.57958058,0.0003671,4]
[313997470,1707919838011,-5057.90674504,0.0003671,4]
[313997472,1707919838020,-30744.78105216,0.0003671,4]
[313997474,1707919838029,-55456.05792755,0.00036711,4]
[313997476,1707919838038,-348.71943713,0.00036712,2]
[313997478,1707919838047,-506.94707941,0.00036712,2]
[313997480,1707919838056,-500.0,0.00036712,2]
[313997482,1707919838065,-500.0,0.00036712,2]
[313997484,1707919838074,-500.0,0.00036712,2]
[313997486,1707919838083,-500.0,0.00036712,2]
[313997488,1707919838091,-500.0,0.00036712,2]
[313997490,1707919838101,-500.0,0.00036712,2]
[313997492,1707919838110,-500.0,0.00036712,2]
[313997493,1707919838119,-500.0,0.00036712,2]
[313997495,1707919838128,-500.0,0.00036712,2]
[313997497,1707919838136,-250.0,0.00036712,2]
[313997499,1707919838146,-500.0,0.00036712,2]
[313997501,1707919838155,-500.0,0.00036712,2]
[313997502,1707919838164,-500.0,0.00036712,2]
[313997504,1707919838174,-500.0,0.00036712,2]
[313997506,1707919838183,-500.0,0.00036712,2]
[313997508,1707919838191,-500.0,0.00036712,2]
[313997510,1707919838200,-500.0,0.00036712,2]
[313997512,1707919838210,-500.0,0.00036712,2]
[313997514,1707919838220,-500.0,0.00036712,2]
[313997516,1707919838229,-500.0,0.00036712,2]
[313997518,1707919838238,-500.0,0.00036712,2]
[313997520,1707919838248,-500.0,0.00036712,2]
[313997522,1707919838256,-826.49,0.00036712,2]
[313997524,1707919838265,-756.06,0.00036712,2]
[313997526,1707919838274,-500.0,0.00036712,2]
[313997528,1707919838283,-500.0,0.00036712,2]
[313997530,1707919838292,-575.44,0.00036712,2]
[313997532,1707919838301,-500.0,0.00036712,2]
[313997534,1707919838310,-500.0,0.00036712,2]
[313997536,1707919838320,-500.0,0.00036712,2]
[313997538,1707919838329,-534.74,0.00036712,2]
[313997540,1707919838338,-500.0,0.00036712,2]
[313997542,1707919838347,-951.22,0.00036712,2]
[313997544,1707919838358,-500.0,0.00036712,2]
[313997546,1707919838367,-500.0,0.00036712,2]
[313997548,1707919838376,-500.0,0.00036712,2]
[313997550,1707919838385,-905.24,0.00036712,2]
[313997551,1707919838394,-500.0,0.00036712,2]
[313997553,1707919838403,-500.0,0.00036712,2]
[313997555,1707919838412,-500.0,0.00036712,2]
[313997557,1707919838421,-529.87,0.00036712,2]
[313997558,1707919838430,-500.0,0.00036712,2]
[313997559,1707919838440,-508.14,0.00036712,2]
[313997560,1707919838448,-500.0,0.00036712,2]
[313997561,1707919838458,-1032.9,0.00036712,2]
[313997562,1707919838468,-500.0,0.00036712,2]
[313997563,1707919838478,-500.0,0.00036712,2]
[313997564,1707919838486,-706.47,0.00036712,2]
[313997565,1707919838495,-722.75,0.00036712,2]
[313997566,1707919838504,-500.0,0.00036712,2]
[313997567,1707919838513,-500.0,0.00036712,2]
[313997568,1707919838522,-500.0,0.00036712,2]
[313997569,1707919838531,-902.63,0.00036712,2]
[313997570,1707919838540,-946.15,0.00036712,2]
[313997571,1707919838551,-171.34104251,0.00036712,2]
[313997572,1707919838560,-963.24,0.00036712,2]
[313997573,1707919838570,-500.0,0.00036712,2]
[313997574,1707919838578,-500.0,0.00036712,2]
[313997575,1707919838588,-900.9,0.00036712,2]
[313997576,1707919838597,-500.0,0.00036712,2]
[313997577,1707919838607,-1130.02,0.00036712,2]
[313997578,1707919838616,-500.0,0.00036712,2]
[313997579,1707919838625,-553.76,0.00036712,2]
[313997580,1707919838634,-500.0,0.00036712,2]
[313997581,1707919838643,-548.06,0.00036712,2]
[313997582,1707919838652,-765.2,0.00036712,2]
[313997583,1707919838661,-500.0,0.00036712,2]
[313997584,1707919838670,-793.33,0.00036712,2]
[313997585,1707919838678,-500.0,0.00036712,2]
[313997586,1707919838689,-500.0,0.00036712,2]
[313997587,1707919838698,-1203.69,0.00036712,2]
[313997588,1707919838708,-500.0,0.00036712,2]
[313997589,1707919838717,-500.0,0.00036712,2]
[313997590,1707919838726,-600.22,0.00036712,2]
[313997591,1707919838735,-205.55071146,0.00036712,2]
[313997592,1707919838744,-500.0,0.00036712,2]
[313997593,1707919838754,-500.0,0.00036712,2]
[313997594,1707919838763,-500.0,0.00036712,2]
[313997595,1707919838772,-500.0,0.00036712,2]
[313997596,1707919838781,-500.0,0.00036712,2]
[313997597,1707919838791,-500.0,0.00036712,2]
[313997598,1707919838800,-500.0,0.00036712,2]
[313997599,1707919838809,-500.0,0.00036712,2]
[313997600,1707919838818,-531.33491749,0.00036712,2]
[313997601,1707919838827,-500.0,0.00036712,2]
[313997602,1707919838835,-500.0,0.00036712,2]
[313997603,1707919838844,-695.17,0.00036712,2]
[313997604,1707919838853,-500.0,0.00036712,2]
[313997605,1707919838862,-662.63,0.00036712,2]
[313997606,1707919838871,-500.0,0.00036712,2]
[313997607,1707919838880,-555.05177294,0.00036712,2]
[313997608,1707919838889,-492.0,0.00036712,2]
[313997609,1707919838898,-500.0,0.00036712,2]
[313997610,1707919838907,-500.0,0.00036712,2]
[313997611,1707919838916,-500.0,0.00036712,2]
[313997612,1707919838926,-500.0,0.00036712,2]
[313997613,1707919838937,-500.0,0.00036712,2]
[313997614,1707919838945,-500.0,0.00036712,2]
[313997615,1707919838954,-1481.61,0.00036712,2]
[313997616,1707919838965,-575.85,0.00036712,2]
[313997617,1707919838975,-1766.78,0.00036712,2]
[313997618,1707919838983,-639.16593671,0.00036712,2]
[313997619,1707919838992,-500.0,0.00036712,2]
[313997620,1707919839001,-500.0,0.00036712,2]
[313997621,1707919839011,-500.0,0.00036712,2]
[313997622,1707919839020,-500.0,0.00036712,2]
[313997623,1707919839029,-500.0,0.00036712,2]
[313997624,1707919839038,-500.0,0.00036712,2]
[313997625,1707919839047,-500.0,0.00036712,2]
[313997626,1707919839056,-500.0,0.00036712,2]
[313997627,1707919839065,-500.0,0.00036712,2]
[313997628,1707919839074,-506.58560065,0.00036712,2]
[313997629,1707919839082,-500.0,0.00036712,2]
[313997630,1707919839092,-500.0,0.00036712,2]
[313997631,1707919839101,-695.37,0.00036712,2]
[313997632,1707919839110,-500.0,0.00036712,2]
[313997633,1707919839119,-381.84272449,0.00036712,2]
[313997634,1707919839128,-540.02,0.00036712,2]
[313997635,1707919839137,-500.0,0.00036712,2]
[313997636,1707919839146,-500.0,0.00036712,2]
[313997637,1707919839155,-500.0,0.00036712,2]
[313997638,1707919839164,-504.83,0.00036712,2]
[313997639,1707919839175,-500.0,0.00036712,2]
[313997640,1707919839188,-500.0,0.00036712,2]
[313997641,1707919839200,-513.93576816,0.00036712,2]
[313997642,1707919839209,-500.0,0.00036712,2]
[313997643,1707919839218,-500.0,0.00036712,2]
[313997644,1707919839227,-547.32,0.00036712,2]
[313997645,1707919839236,-500.0,0.00036712,2]
[313997646,1707919839245,-511.27482697,0.00036712,2]
[313997647,1707919839255,-500.0,0.00036712,2]
[313997648,1707919839264,-500.0,0.00036712,2]
[313997649,1707919839273,-500.0,0.00036712,2]
[313997650,1707919839283,-500.0,0.00036712,2]
[313997651,1707919839292,-551.86,0.00036712,2]
[313997652,1707919839301,-500.0,0.00036712,2]
[313997653,1707919839311,-500.0,0.00036712,2]
[313997655,1707919839319,-826.01,0.00036712,2]
[313997656,1707919839328,-736.98,0.00036712,2]
[313997657,1707919839338,-500.0,0.00036712,2]
[313997658,1707919839347,-500.0,0.00036712,2]
[313997659,1707919839356,-500.0,0.00036712,2]
[313997660,1707919839365,-926.74,0.00036712,2]
[313997661,1707919839374,-500.0,0.00036712,2]
[313997662,1707919839383,-500.0,0.00036712,2]
[313997663,1707919839392,-508.71671374,0.00036712,2]
[313997664,1707919839402,-512.8,0.00036712,2]
[313997665,1707919839411,-400.86859948,0.00036712,2]
[313997666,1707919839420,-725.26,0.00036712,2]
[313997667,1707919839429,-517.84516999,0.00036712,2]
[313997668,1707919839438,-609.47,0.00036712,2]
[313997669,1707919839447,-500.0,0.00036712,2]
[313997670,1707919839457,-500.0,0.00036712,2]
[313997671,1707919839467,-500.0,0.00036712,2]
[313997672,1707919839476,-500.0,0.00036712,2]
[313997673,1707919839486,-500.0,0.00036712,2]
[313997674,1707919839496,-684.74,0.00036712,2]
[313997675,1707919839505,-514.63,0.00036712,2]
[313997676,1707919839514,-500.0,0.00036712,2]
[313997677,1707919839524,-500.0,0.00036712,2]
[313997678,1707919839533,-685.1,0.00036712,2]
[313997679,1707919839543,-745.09,0.00036712,2]
[313997680,1707919839553,-500.0,0.00036712,2]
[313997681,1707919839562,-500.0,0.00036712,2]
[313997682,1707919839571,-500.0,0.00036712,2]
[313997683,1707919839581,-582.16,0.00036712,2]
[313997684,1707919839590,-663.02,0.00036712,2]
[313997685,1707919839599,-500.0,0.00036712,2]
[313997686,1707919839609,-500.0,0.00036712,2]
[313997687,1707919839618,-984.03,0.00036712,2]
[313997688,1707919839627,-500.0,0.00036712,2]
[313997689,1707919839636,-500.0,0.00036712,2]
[313997690,1707919839645,-500.0,0.00036712,2]
[313997691,1707919839655,-1439.2,0.00036712,2]
[313997692,1707919839664,-511.58478965,0.00036712,2]
[313997693,1707919839673,-500.0,0.00036712,2]
[313997694,1707919839682,-189.10399249,0.00036712,2]
[313997695,1707919839692,-500.0,0.00036712,2]
[313997696,1707919839701,-500.0,0.00036712,2]
[313997697,1707919839710,-524.19,0.00036712,2]
[313997698,1707919839721,-500.0,0.00036712,2]
[313997699,1707919839730,-599.69,0.00036712,2]
[313997700,1707919839739,-500.0,0.00036712,2]
[313997701,1707919839748,-500.0,0.00036712,2]
[313997702,1707919839757,-500.0,0.00036712,2]
[313997703,1707919839767,-500.0,0.00036712,2]
[313997704,1707919839776,-920.97,0.00036712,2]
[313997705,1707919839785,-521.93768246,0.00036712,2]
[313997706,1707919839794,-581.69900433,0.00036712,2]
[313997707,1707919839803,-511.46170133,0.00036712,2]
[313997708,1707919839812,-590.59,0.00036712,2]
[313997709,1707919839822,-500.0,0.00036712,2]
[313997710,1707919839831,-531.44702969,0.00036712,2]
[313997711,1707919839840,-500.0,0.00036712,2]
[313997712,1707919839850,-500.0,0.00036712,2]
[313997713,1707919839859,-500.0,0.00036712,2]
[313997714,1707919839868,-500.0,0.00036712,2]
[313997715,1707919839877,-500.0,0.00036712,2]
[313997716,1707919839886,-567.09956371,0.00036712,2]
[313997717,1707919839896,-500.0,0.00036712,2]
[313997718,1707919839905,-500.0,0.00036712,2]
[313997719,1707919839914,-500.0,0.00036712,2]
[313997720,1707919839923,-500.0,0.00036712,2]
[313997721,1707919839933,-1071.41,0.00036712,2]
[313997722,1707919839945,-500.0,0.00036712,2]
[313997723,1707919839954,-500.0,0.00036712,2]
[313997724,1707919839963,-500.0,0.00036712,2]
[313997725,1707919839973,-650.92,0.00036712,2]
[313997726,1707919839983,-903.14,0.00036712,2]
[313997727,1707919839992,-500.0,0.00036712,2]
[313997728,1707919840001,-1209.78,0.00036712,2]
[313997729,1707919840011,-500.0,0.00036712,2]
[313997730,1707919840020,-500.0,0.00036712,2]
[313997731,1707919840029,-837.79,0.00036712,2]
[313997732,1707919840037,-500.0,0.00036712,2]
[313997733,1707919840047,-500.0,0.00036712,2]
[313997734,1707919840056,-500.0,0.00036712,2]
[313997735,1707919840065,-500.0,0.00036712,2]
[313997736,1707919840074,-500.0,0.00036712,2]
[313997737,1707919840083,-519.96512816,0.00036712,2]
[313997738,1707919840093,-606.3,0.00036712,2]
[313997739,1707919840102,-500.0,0.00036712,2]
[313997740,1707919840111,-500.0,0.00036712,2]
[313997741,1707919840120,-585.85,0.00036712,2]
[313997742,1707919840129,-585.89,0.00036712,2]
[313997743,1707919840138,-506.76491186,0.00036712,2]
[313997744,1707919840147,-500.0,0.00036712,2]
[313997745,1707919840156,-1310.41,0.00036712,2]
[313997746,1707919840165,-500.0,0.00036712,2]
[313997747,1707919840174,-500.0,0.00036712,2]
[313997748,1707919840184,-500.0,0.00036712,2]
[313997749,1707919840193,-500.0,0.00036712,2]
[313997750,1707919840202,-500.0,0.00036712,2]
[313997751,1707919840211,-500.0,0.00036712,2]
[313997752,1707919840222,-890.1,0.00036712,2]
[313997753,1707919840231,-500.0,0.00036712,2]
[313997754,1707919840240,-1526.27,0.00036712,2]
[313997755,1707919840250,-486.56489664,0.00036712,2]
[313997756,1707919840259,-500.0,0.00036712,2]
[313997757,1707919840268,-647.23,0.00036712,2]
[313997758,1707919840278,-597.64,0.00036712,2]
[313997759,1707919840287,-500.0,0.00036712,2]
[313997760,1707919840296,-500.0,0.00036712,2]
[313997761,1707919840305,-500.0,0.00036712,2]
[313997762,1707919840315,-500.0,0.00036712,2]
[313997763,1707919840324,-655.16,0.00036712,2]
[313997764,1707919840333,-500.0,0.00036712,2]
[313997765,1707919840342,-500.0,0.00036712,2]
[313997766,1707919840351,-971.55,0.00036712,2]
[313997767,1707919840360,-500.0,0.00036712,2]
[313997768,1707919840370,-500.0,0.00036712,2]
[313997769,1707919840379,-500.0,0.00036712,2]
[313997770,1707919840388,-690.8,0.00036712,2]
[313997771,1707919840397,-500.0,0.00036712,2]
[313997772,1707919840405,-500.0,0.00036712,2]
[313997773,1707919840415,-500.0,0.00036712,2]
[313997774,1707919840423,-500.0,0.00036712,2]
[313997775,1707919840432,-754.02,0.00036712,2]
[313997776,1707919840441,-500.0,0.00036712,2]
[313997777,1707919840450,-500.0,0.00036712,2]
[313997778,1707919840459,-500.0,0.00036712,2]
[313997779,1707919840469,-500.0,0.00036712,2]
[313997780,1707919840478,-500.0,0.00036712,2]
[313997781,1707919840488,-500.0,0.00036712,2]
[313997782,1707919840497,-1056.85,0.00036712,2]
[313997783,1707919840506,-760.3,0.00036712,2]
[313997784,1707919840515,-500.0,0.00036712,2]
[313997785,1707919840524,-500.0,0.00036712,2]
[313997786,1707919840533,-500.0,0.00036712,2]
[313997787,1707919840543,-207.69467369,0.00036712,7]
[313997788,1707919840552,-500.0,0.00036712,2]
[313997789,1707919840562,-500.0,0.00036712,2]
[313997790,1707919840571,-500.0,0.00036712,2]
[313997791,1707919840580,-500.0,0.00036712,2]
[313997792,1707919840589,-500.0,0.00036712,2]
[313997793,1707919840598,-500.0,0.00036712,2]
[313997794,1707919840607,-500.0,0.00036712,2]
[313997795,1707919840617,-500.0,0.00036712,2]
[313997796,1707919840626,-500.0,0.00036712,2]
[313997797,1707919840636,-514.82,0.00036712,2]
[313997798,1707919840645,-902.0,0.00036712,2]
[313997799,1707919840654,-500.0,0.00036712,2]
[313997800,1707919840664,-500.0,0.00036712,2]
[313997801,1707919840673,-500.0,0.00036712,2]
[313997802,1707919840682,-500.0,0.00036712,2]
[313997803,1707919840692,-500.0,0.00036712,2]
[313997804,1707919840701,-500.0,0.00036712,2]
[313997805,1707919840711,-983.7,0.00036712,2]
[313997806,1707919840720,-500.0,0.00036712,2]
[313997807,1707919840729,-604.35,0.00036712,2]
[313997808,1707919840739,-500.0,0.00036712,2]
[313997809,1707919840748,-500.0,0.00036712,2]
[313997810,1707919840758,-500.0,0.00036712,2]
[313997811,1707919840771,-500.0,0.00036712,2]
[313997812,1707919840780,-500.0,0.00036712,2]
[313997813,1707919840789,-548.62,0.00036712,2]
[313997814,1707919840799,-500.0,0.00036712,2]
[313997815,1707919840808,-545.46,0.00036712,2]
[313997816,1707919840817,-500.0,0.00036712,2]
[313997817,1707919840827,-500.0,0.00036712,2]
[313997818,1707919840836,-574.36,0.00036712,2]
[313997819,1707919840845,-500.0,0.00036712,2]
[313997820,1707919840855,-500.0,0.00036712,2]
[313997821,1707919840864,-950.52,0.00036712,2]
[313997822,1707919840873,-500.0,0.00036712,2]
[313997823,1707919840883,-500.0,0.00036712,2]
[313997824,1707919840892,-632.98,0.00036712,2]
[313997825,1707919840901,-500.0,0.00036712,2]
[313997826,1707919840910,-500.0,0.00036712,2]
[313997827,1707919840919,-500.0,0.00036712,2]
[313997828,1707919840929,-500.0,0.00036712,2]
[313997829,1707919840942,-500.0,0.00036712,2]
[313997830,1707919840951,-500.0,0.00036712,2]
[313997831,1707919840963,-741.74,0.00036712,2]
[313997832,1707919840976,-531.63,0.00036712,2]
[313997833,1707919840986,-500.0,0.00036712,2]
[313997834,1707919840995,-500.0,0.00036712,2]
[313997835,1707919841005,-500.0,0.00036712,2]
[313997836,1707919841016,-500.0,0.00036712,2]
[313997837,1707919841026,-500.0,0.00036712,2]
[313997838,1707919841036,-500.0,0.00036712,2]
[313997839,1707919841045,-1000.0,0.00036712,2]
[313997840,1707919841055,-500.0,0.00036712,2]
[313997841,1707919841064,-500.0,0.00036712,2]
[313997842,1707919841074,-500.0,0.00036712,2]
[313997843,1707919841083,-481.9484246,0.00036712,2]
[313997844,1707919841094,-500.0,0.00036712,2]
[313997845,1707919841103,-500.0,0.00036712,2]
[313997846,1707919841113,-629.5,0.00036712,2]
[313997847,1707919841123,-500.0,0.00036712,2]
[313997848,1707919841133,-500.0,0.00036712,2]
[313997849,1707919841142,-500.0,0.00036712,2]
[313997850,1707919841151,-769.16,0.00036712,2]
[313997851,1707919841160,-169.69095894,0.00036712,2]
[313997852,1707919841170,-505.35933131,0.00036712,2]
[313997853,1707919841179,-500.0,0.00036712,2]
[313997854,1707919841188,-667.34,0.00036712,2]
[313997855,1707919841198,-500.0,0.00036712,2]
[313997856,1707919841207,-500.0,0.00036712,2]
[313997857,1707919841217,-500.0,0.00036712,2]
[313997858,1707919841227,-500.0,0.00036712,2]
[313997859,1707919841236,-500.0,0.00036712,2]
[313997860,1707919841245,-500.0,0.00036712,2]
[313997861,1707919841254,-500.0,0.00036712,2]
[313997862,1707919841263,-909.17,0.00036712,2]
[313997863,1707919841273,-635.50793876,0.00036712,2]
[313997864,1707919841283,-500.0,0.00036712,2]
[313997865,1707919841292,-500.0,0.00036712,2]
[313997866,1707919841302,-500.0,0.00036712,2]
[313997867,1707919841311,-594.79,0.00036712,2]
[313997868,1707919841321,-500.0,0.00036712,2]
[313997869,1707919841331,-500.0,0.00036712,2]
[313997870,1707919841340,-500.0,0.00036712,2]
[313997871,1707919841350,-500.0,0.00036712,2]
[313997872,1707919841359,-631.37,0.00036712,2]
[313997873,1707919841369,-541.43,0.00036712,2]
[313997874,1707919841379,-1176.19,0.00036712,2]
[313997875,1707919841390,-500.0,0.00036712,2]
[313997876,1707919841399,-500.0,0.00036712,2]
[313997877,1707919841409,-500.0,0.00036712,2]
[313997878,1707919841418,-500.0,0.00036712,2]
[313997879,1707919841427,-500.0,0.00036712,2]
[313997880,1707919841437,-500.0,0.00036712,2]
[313997881,1707919841446,-500.0,0.00036712,2]
[313997882,1707919841455,-500.0,0.00036712,2]
[313997883,1707919841465,-500.0,0.00036712,2]
[313997884,1707919841475,-500.0,0.00036712,2]
[313997885,1707919841484,-831.66,0.00036712,2]
[313997886,1707919841493,-618.15,0.00036712,2]
[313997887,1707919841502,-500.0,0.00036712,2]
[313997888,1707919841511,-500.0,0.00036712,2]
[313997889,1707919841521,-500.0,0.00036712,2]
[313997890,1707919841530,-571.72,0.00036712,2]
[313997891,1707919841539,-1511.8,0.00036712,2]
[313997892,1707919841549,-500.0,0.00036712,2]
[313997893,1707919841558,-588.83,0.00036712,2]
[313997894,1707919841567,-1000.0,0.00036712,7]
[313997895,1707919841575,-500.0,0.00036712,2]
[313997896,1707919841585,-500.0,0.00036712,2]
[313997897,1707919841594,-500.0,0.00036712,2]
[313997898,1707919841602,-151.21777762,0.00036712,2]
[313997899,1707919841611,-500.0,0.00036712,2]
[313997900,1707919841620,-500.0,0.00036712,2]
[313997901,1707919841629,-500.0,0.00036712,2]
[313997902,1707919841638,-506.08824678,0.00036712,2]
[313997903,1707919841647,-564.67,0.00036712,2]
[313997904,1707919841656,-500.0,0.00036712,2]
[313997905,1707919841666,-500.0,0.00036712,2]
[313997906,1707919841675,-1143.76,0.00036712,2]
[313997907,1707919841684,-550.31,0.00036712,2]
[313997908,1707919841693,-1311.08,0.00036712,2]
[313997909,1707919841702,-395.17941559,0.00036712,2]
[313997910,1707919841711,-158.23170335,0.00036712,2]
[313997911,1707919841721,-794.07,0.00036712,2]
[313997912,1707919841730,-500.0,0.00036712,2]
[313997913,1707919841740,-810.38,0.00036712,2]
[313997914,1707919841749,-500.0,0.00036712,2]
[313997915,1707919841758,-500.0,0.00036712,2]
[313997916,1707919841767,-500.0,0.00036712,2]
[313997917,1707919841776,-539.20575747,0.00036712,2]
[313997918,1707919841977,-260.22685945,0.00036712,2]
[313997919,1707919841987,-500.0,0.00036712,2]
[313997920,1707919841996,-516.37,0.00036712,2]
[313997921,1707919842006,-1395.91,0.00036712,2]
[313997922,1707919842015,-500.0,0.00036712,2]
[313997923,1707919842024,-1020.26,0.00036712,2]
[313997924,1707919842034,-500.0,0.00036712,2]
[313997925,1707919842043,-500.0,0.00036712,2]
[313997926,1707919842051,-500.0,0.00036712,2]
[313997927,1707919842060,-500.0,0.00036712,2]
[313997928,1707919842069,-739.01,0.00036712,2]
[313997929,1707919842078,-718.34,0.00036712,2]
[313997930,1707919842088,-938.91,0.00036712,2]
[313997931,1707919842097,-500.0,0.00036712,2]
[313997932,1707919842106,-500.0,0.00036712,2]
[313997933,1707919842114,-845.99,0.00036712,2]
[313997934,1707919842124,-500.0,0.00036712,2]
[313997935,1707919842133,-500.0,0.00036712,2]
[313997936,1707919842142,-500.0,0.00036712,2]
[313997937,1707919842151,-500.0,0.00036712,2]
[313997938,1707919842160,-719.24,0.00036712,2]
[313997939,1707919842169,-500.0,0.00036712,2]
[313997940,1707919842179,-733.62,0.00036712,2]
[313997941,1707919842189,-1039.2,0.00036712,2]
[313997942,1707919842198,-500.0,0.00036712,2]
[313997943,1707919842207,-500.0,0.00036712,2]
[313997944,1707919842216,-546.99,0.00036712,2]
[313997945,1707919842225,-500.0,0.00036712,2]
[313997946,1707919842234,-500.0,0.00036712,2]
[313997947,1707919842244,-500.0,0.00036712,2]
[313997948,1707919842253,-155.0703878,0.00036712,2]
[313997949,1707919842263,-1068.2,0.00036712,2]
[313997950,1707919842273,-500.0,0.00036712,2]
[313997951,1707919842282,-500.0,0.00036712,2]
[313997952,1707919842292,-539.12,0.00036712,2]
[313997954,1707919842302,-500.0,0.00036712,2]
[313997956,1707919842311,-500.0,0.00036712,2]
[313997957,1707919842321,-500.0,0.00036712,2]
[313997958,1707919842331,-1593.23,0.00036712,2]
[313997959,1707919842340,-1249.49,0.00036712,2]
[313997960,1707919842350,-594.46,0.00036712,2]
[313997961,1707919842359,-500.0,0.00036712,2]